bitfinex-derivatives/quotes_SOLF0:USTF0_20250416
["timestamp","ask_amount","ask_price","bid_price","bid_amount"]
[1744807755660,0.05528358,125.29,125.24,12.74470233]
[1744807755861,0.05528358,125.29,125.28,7.9827]
[1744807756761,10.65350233,125.35,125.3,7.9814]
[1744807757157,10.65350233,125.35,125.27,2.0988]
[1744807757358,10.65350233,125.37,125.32,7.9799]
[1744807757961,0.05019976,125.36,125.33,0.0540847]
[1744807758161,0.05019976,125.36,125.33,8.0334847]
[1744807758363,0.05019976,125.36,125.33,0.0540847]
[1744807758763,0.05019976,125.36,125.33,8.0331847]
[1744807758963,0.05019976,125.36,125.33,0.0540847]
[1744807759173,0.05019976,125.36,125.33,8.0332847]
[1744807759464,0.05019976,125.36,125.33,0.0540847]
[1744807759858,0.05019976,125.36,125.33,8.0332847]
[1744807760058,0.05019976,125.36,125.33,0.0540847]
[1744807760458,0.05019976,125.36,125.34,7.9784]
[1744807760864,0.05019976,125.36,125.33,0.0540847]
[1744807760865,0.05019976,125.36,125.35,7.9783]
[1744807761455,10.65350233,125.41,125.38,7.9762]
[1744807762458,10.65350233,125.41,125.39,7.9756]
[1744807762660,10.70628485,125.41,125.38,0.05217189]
[1744807762861,10.65350233,125.41,125.38,0.05217189]
[1744807763065,10.713575,125.41,125.38,0.05217189]
[1744807764267,10.713575,125.41,125.38,8.02837189]
[1744807766471,10.713575,125.41,125.39,7.9757]
[1744807766770,10.713575,125.41,125.38,0.05217189]
[1744807766971,0.06007267,125.41,125.38,0.05217189]
[1744807767671,0.06007267,125.41,125.4,7.9751]
[1744807769572,0.06007267,125.41,125.39,7.9754]
[1744807769967,0.06007267,125.41,125.38,0.05217189]
[1744807770971,10.713575,125.41,125.38,0.05217189]
[1744807771571,10.713575,125.41,125.39,7.9754]
[1744807772872,18.688075,125.41,125.38,8.02817189]
[1744807774074,10.713575,125.41,125.39,7.9757]
[1744807776275,0.06007267,125.41,125.38,0.05217189]
[1744807777269,10.65350233,125.4,125.38,0.05217189]
[1744807777469,10.65350233,125.4,125.38,8.02817189]
[1744807778370,18.62860233,125.4,125.38,0.05217189]
[1744807778874,10.65350233,125.4,125.38,0.05217189]
[1744807779174,10.65350233,125.4,125.38,8.02817189]
[1744807780176,18.62860233,125.4,125.38,0.05217189]
[1744807780372,10.65350233,125.4,125.38,0.05217189]
[1744807780573,10.65350233,125.38,125.33,2.1571]
[1744807781371,10.65350233,125.4,125.33,2.1571]
[1744807781572,0.05636394,125.37,125.34,0.05122539]
[1744807781880,0.05636394,125.37,125.36,7.9776]
[1744807784078,0.05636394,125.37,125.35,7.9779]
[1744807784471,0.05636394,125.37,125.34,0.05122539]
[1744807784679,18.63140233,125.36,125.34,0.05122539]
[1744807785377,10.65350233,125.36,125.34,0.05122539]
[1744807785975,10.65350233,125.36,125.34,8.02982539]
[1744807787278,10.65350233,125.36,125.34,0.05122539]
[1744807787881,0.05636394,125.37,125.34,0.05122539]
[1744807789183,0.05636394,125.37,125.35,7.9778]
[1744807792186,8.03336394,125.37,125.35,7.9778]
[1744807792381,8.03336394,125.37,125.34,8.02982539]
[1744807792687,0.05636394,125.37,125.34,0.05122539]
[1744807793087,0.05636394,125.37,125.35,7.9782]
[1744807793281,0.05636394,125.37,125.34,0.05122539]
[1744807793282,8.03376394,125.37,125.34,0.05122539]
[1744807793483,0.05636394,125.37,125.34,0.05122539]
[1744807793685,10.65350233,125.36,125.34,0.05122539]
[1744807794486,7.9783,125.35,125.34,0.05122539]
[1744807794987,18.63140233,125.36,125.34,0.05122539]
[1744807796588,18.63140233,125.36,125.34,8.03012539]
[1744807797289,7.9783,125.35,125.34,0.05122539]
[1744807797591,10.65350233,125.36,125.34,0.05122539]
[1744807798490,7.9783,125.35,125.34,0.05122539]
[1744807799996,7.98,125.33,125.29,2.0363]
[1744807800592,7.9793,125.34,125.31,7.9807]
[1744807800884,7.9793,125.34,125.29,2.0363]
[1744807800885,10.65350233,125.34,125.29,2.0363]
[1744807801085,7.9812,125.31,125.28,2.0208]
[1744807801393,10.65350233,125.36,125.28,2.0208]
[1744807801592,0.06072874,125.31,125.3,7.9814]
[1744807801795,7.9792,125.34,125.29,2.0815]
[1744807801994,10.65350233,125.36,125.29,2.0815]
[1744807801995,0.05511385,125.31,125.29,2.0815]
[1744807802191,7.9792,125.34,125.29,2.0815]
[1744807802394,0.05793449,125.31,125.29,2.0815]
[1744807802696,0.05793449,125.31,125.3,7.9814]
[1744807806491,0.05793449,125.31,125.29,10.0632]
[1744807807197,8.03903449,125.31,125.29,10.0632]
[1744807808397,0.05793449,125.31,125.29,10.0632]
[1744807809292,0.05793449,125.31,125.3,7.9814]
[1744807810101,0.05793449,125.31,125.29,10.0632]
[1744807810400,0.05793449,125.31,125.29,2.0815]
[1744807810900,10.65350233,125.38,125.29,12.73500233]
[1744807811102,10.65350233,125.4,125.31,10.65350233]
[1744807811295,10.65350233,125.4,125.34,7.9785]
[1744807811496,10.65350233,125.38,125.34,7.9785]
[1744807811900,8.02980767,125.37,125.35,0.0592891]
[1744807812196,0.05250767,125.37,125.35,0.0592891]
[1744807812394,7.9776,125.36,125.35,0.0592891]
[1744807813699,10.65350233,125.36,125.29,2.0815]
[1744807814100,10.65350233,125.36,125.32,7.9798]
[1744807814494,10.65350233,125.36,125.31,7.9804]
[1744807814700,10.65350233,125.36,125.29,2.0815]
[1744807814902,7.979,125.34,125.29,2.0815]
[1744807815197,7.979,125.34,125.32,7.9799]
[1744807815705,0.0571256,125.35,125.29,2.0815]
[1744807816005,0.0571256,125.35,125.29,12.73500233]
[1744807816804,0.0571256,125.35,125.34,7.9789]
[1744807817699,0.0571256,125.35,125.33,7.9792]
[1744807818095,0.0571256,125.35,125.29,2.0815]
[1744807818400,0.0571256,125.35,125.34,7.9789]
[1744807821113,10.65350233,125.4,125.37,7.9766]
[1744807821313,7.9754,125.4,125.34,10.65350233]
[1744807821513,7.9754,125.4,125.35,6.5123]
[1744807821812,7.9754,125.4,125.38,7.976]
[1744807822217,7.9748,125.41,125.39,7.9756]
[1744807822510,0.05060709,125.4,125.39,7.9756]
[1744807824608,0.05060709,125.4,125.38,8.03007909]
[1744807824819,0.05060709,125.4,125.38,0.05407909]
[1744807825116,0.05060709,125.4,125.38,8.02997909]
[1744807825415,0.05060709,125.4,125.38,0.05407909]
[1744807827715,10.65350233,125.46,125.38,0.05407909]
[1744807827912,10.65350233,125.46,125.36,10.65350233]
[1744807828215,7.9735,125.43,125.41,7.9744]
[1744807828816,0.05255257,125.43,125.41,8.03522224]
[1744807829019,0.05255257,125.43,125.42,7.9738]
[1744807829815,0.05255257,125.43,125.41,8.03502224]
[1744807830012,8.02605257,125.43,125.41,8.03502224]
[1744807830411,0.05255257,125.43,125.41,0.06082224]
[1744807830908,0.05255257,125.43,125.42,7.9738]
[1744807833316,4.3207,125.5,125.45,7.9718]
[1744807833625,7.971,125.47,125.42,2.1379]
[1744807833818,10.65350233,125.49,125.42,2.1379]
[1744807834120,10.65350233,125.47,125.42,2.1379]
[1744807834520,8.02258218,125.46,125.43,8.02329195]
[1744807834722,0.05098218,125.46,125.43,0.05069195]
[1744807834922,10.65350233,125.45,125.43,0.05069195]
[1744807835123,7.9725,125.44,125.43,0.05069195]
[1744807837120,7.9746,125.41,125.38,2.209]
[1744807837826,7.9746,125.41,125.38,7.9761]
[1744807838326,7.9751,125.4,125.38,8.0273439]
[1744807839025,18.68035833,125.41,125.38,8.0273439]
[1744807839326,18.68035833,125.41,125.39,7.9756]
[1744807841223,18.68035833,125.41,125.38,8.0273439]
[1744807843426,0.052056,125.41,125.39,7.9754]
[1744807843732,0.052056,125.41,125.38,0.0512439]
[1744807846233,0.052056,125.41,125.38,10.70474623]
[1744807846533,12.71840233,125.47,125.38,10.70474623]
[1744807846730,12.71840233,125.47,125.38,10.65350233]
[1744807846932,7.9723,125.45,125.43,7.9729]
[1744807847534,8.02873056,125.45,125.43,8.02449262]
[1744807847736,0.05643056,125.45,125.43,0.05159262]
[1744807848336,8.02853056,125.45,125.43,8.02449262]
[1744807848637,0.05643056,125.45,125.43,0.05159262]
[1744807848834,7.9725,125.44,125.43,0.05159262]
[1744807849033,0.05643056,125.45,125.43,0.05159262]
[1744807849434,0.05643056,125.45,125.44,7.9725]
[1744807849736,0.05643056,125.45,125.43,0.05159262]
[1744807850136,8.02863056,125.45,125.43,8.02449262]
[1744807851135,0.05643056,125.45,125.44,7.9725]
[1744807854443,14.80060233,125.51,125.47,7.9705]
[1744807854639,14.80060233,125.51,125.41,6.3618]
[1744807855241,7.9703,125.48,125.41,6.3618]
[1744807855545,7.9703,125.48,125.46,7.9712]
[1744807855843,8.02539529,125.48,125.46,7.9712]
[1744807856043,8.02539529,125.48,125.46,8.02735781]
[1744807856245,7.9706,125.47,125.46,0.05615781]
[1744807856943,18.62410233,125.47,125.46,0.05615781]
[1744807857137,7.9716,125.46,125.41,6.3618]
[1744807857445,7.9716,125.46,125.43,7.9728]
[1744807857642,7.9716,125.46,125.41,6.3618]
[1744807858044,7.9716,125.46,125.43,7.9726]
[1744807858241,0.05318656,125.45,125.42,0.05099746]
[1744807858641,0.05318656,125.45,125.44,7.9725]
[1744807860542,0.05318656,125.45,125.42,8.02449746]
[1744807860746,0.05318656,125.45,125.42,0.05099746]
[1744807861045,8.02548656,125.45,125.43,7.9729]
[1744807861259,8.02548656,125.45,125.42,0.05099746]
[1744807861645,7.9732,125.43,125.42,0.05099746]
[1744807861941,7.9732,125.43,125.34,6.4009]
[1744807861942,10.65350233,125.43,125.34,6.4009]
[1744807862147,10.65350233,125.4,125.34,6.4009]
[1744807863149,0.05896627,125.38,125.36,0.06017013]
[1744807863649,0.05896627,125.38,125.37,7.9767]
[1744807863842,0.05896627,125.38,125.36,0.06017013]
[1744807864346,0.05896627,125.38,125.37,7.977]
[1744807864548,0.05896627,125.38,125.36,0.06017013]
[1744807865048,0.05896627,125.38,125.36,8.03777013]
[1744807866844,8.03536627,125.38,125.36,8.03777013]
[1744807867046,18.6888686,125.38,125.36,8.03777013]
[1744807867245,10.7124686,125.38,125.36,8.03777013]
[1744807867549,10.7124686,125.38,125.37,7.977]
[1744807868050,10.7124686,125.38,125.36,8.03747013]
[1744807868250,18.6888686,125.38,125.36,8.03747013]
[1744807868453,18.6888686,125.38,125.36,0.06017013]
[1744807869052,7.977,125.37,125.36,0.06017013]
[1744807869447,7.9786,125.35,125.27,18.1821]
[1744807869648,18.63210233,125.35,125.27,20.2186]
[1744807869853,18.63210233,125.35,125.32,7.9799]
[1744807870255,7.9792,125.34,125.27,20.2186]
[1744807870454,7.9792,125.34,125.31,7.9805]
[1744807870644,0.05113855,125.32,125.31,7.9805]
[1744807875759,0.05113855,125.32,125.3,7.9812]
[1744807876158,8.03163855,125.32,125.29,8.03308592]
[1744807876466,10.65350233,125.31,125.24,2.1574]
[1744807876664,18.63610233,125.29,125.24,2.1574]
[1744807876965,10.65350233,125.29,125.25,7.9843]
[1744807877165,10.65350233,125.29,125.21,2.0155]
[1744807877461,10.65350233,125.27,125.21,2.0155]
[1744807877662,0.05786577,125.26,125.24,7.985]
[1744807877866,0.05786577,125.26,125.19,2.0965]
[1744807878365,10.65350233,125.25,125.19,2.0965]
[1744807878763,0.05708241,125.23,125.21,7.9867]
[1744807879063,0.05708241,125.23,125.19,2.0965]
[1744807879265,10.71058474,125.23,125.11,43.6859806]
[1744807879466,10.65350233,125.21,125.12,17.03340233]
[1744807879763,0.05063527,125.18,125.16,7.9899]
[1744807880167,0.05063527,125.18,125.12,6.3799]
[1744807880367,0.05063527,125.18,125.12,2.035]
[1744807880567,0.05063527,125.18,125.14,10.65350233]
[1744807880768,10.65350233,125.23,125.19,7.9878]
[1744807881064,10.65350233,125.25,125.15,0.05063527]
[1744807881269,10.65350233,125.23,125.18,7.9885]
[1744807881472,10.65350233,125.23,125.13,2.1499]
[1744807881667,10.65350233,125.23,125.14,10.65350233]
[1744807881869,10.65350233,125.23,125.2,7.9878]
[1744807882272,10.70913885,125.23,125.2,0.05063527]
[1744807882970,10.70913885,125.23,125.2,8.03783527]
[1744807883165,10.70913885,125.23,125.2,0.05063527]
[1744807883371,10.70913885,125.23,125.21,7.9868]
[1744807883567,10.70913885,125.23,125.2,0.05063527]
[1744807885173,10.65350233,125.21,125.13,2.1499]
[1744807885373,12.85220233,125.23,125.13,12.80340233]
[1744807885876,12.85220233,125.23,125.2,7.9874]
[1744807886168,12.85220233,125.23,125.13,12.80340233]
[1744807886169,7.9875,125.21,125.18,7.9889]
[1744807886474,12.90821033,125.23,125.14,10.65350233]
[1744807886667,10.65350233,125.23,125.14,10.65350233]
[1744807886873,0.06103344,125.2,125.14,10.65350233]
[1744807887374,0.06103344,125.2,125.19,7.9884]
[1744807889675,10.65350233,125.26,125.17,10.65350233]
[1744807889876,10.65350233,125.24,125.18,6.2889]
[1744807890180,10.65350233,125.24,125.13,10.65350233]
[1744807890374,10.65350233,125.24,125.14,2.0456]
[1744807890573,10.65350233,125.22,125.15,4.246]
[1744807890775,0.05411407,125.2,125.18,0.05566662]
[1744807892173,2.2029,125.27,125.18,0.05566662]
[1744807892475,2.2029,125.27,125.2,7.9875]
[1744807892676,7.9845,125.26,125.2,7.9875]
[1744807893376,0.05816246,125.24,125.22,0.05942866]
[1744807894278,0.05816246,125.24,125.22,8.04582866]
[1744807894478,0.05816246,125.24,125.22,0.05942866]
[1744807895385,10.65350233,125.32,125.23,10.65350233]
[1744807895579,14.92650233,125.34,125.25,10.65350233]
[1744807895879,14.92650233,125.34,125.26,2.1315]
[1744807895880,7.9797,125.33,125.26,2.1315]
[1744807896072,7.9797,125.33,125.28,7.9823]
[1744807896271,2.2008,125.35,125.26,4.3296]
[1744807896476,10.65350233,125.38,125.29,10.65350233]
[1744807896675,0.05436282,125.32,125.29,10.70763427]
[1744807896971,10.65350233,125.38,125.3,2.173]
[1744807897175,0.05626676,125.32,125.3,2.173]
[1744807897379,17.06073308,125.39,125.3,2.173]
[1744807897680,0.05180987,125.32,125.31,7.9805]
[1744807897981,7.9777,125.36,125.31,7.9805]
[1744807898182,0.05325053,125.33,125.31,7.9805]
[1744807898376,0.05325053,125.33,125.3,10.20814669]
[1744807898681,0.05325053,125.33,125.3,2.22694669]
[1744807898882,7.976,125.39,125.34,7.9784]
[1744807899082,6.4075,125.41,125.3,19.28767977]
[1744807899274,6.4075,125.41,125.3,19.23373308]
[1744807899478,17.06073308,125.39,125.3,2.173]
[1744807899883,7.9781,125.36,125.31,7.9804]
[1744807900077,17.06073308,125.39,125.33,0.05316901]
[1744807900283,0.05994479,125.36,125.33,0.05316901]
[1744807900475,7.9788,125.35,125.33,0.05316901]
[1744807901073,7.9789,125.34,125.33,0.05316901]
[1744807901278,0.05994479,125.36,125.26,4.3296]
[1744807901474,17.06073308,125.35,125.26,4.3296]
[1744807901881,17.06073308,125.32,125.26,2.1315]
[1744807902078,17.06073308,125.3,125.22,2.0463]
[1744807902483,0.05181132,125.27,125.25,0.05753684]
[1744807903183,7.984,125.26,125.25,0.05753684]
[1744807904588,0.05181132,125.27,125.17,2.0521]
[1744807904886,17.06073308,125.28,125.17,2.0521]
[1744807905186,7.9856,125.24,125.2,7.9873]
[1744807905388,17.06073308,125.28,125.17,2.0521]
[1744807905884,0.05043151,125.24,125.21,0.05286241]
[1744807906082,0.05043151,125.24,125.21,8.03966241]
[1744807906785,8.03583151,125.24,125.21,8.03966241]
[1744807908389,7.9859,125.23,125.21,0.05286241]
[1744807908582,0.05043151,125.24,125.21,0.05286241]
[1744807909086,8.03603151,125.24,125.21,0.05286241]
[1744807909685,0.05043151,125.24,125.21,0.05286241]
[1744807910281,0.05043151,125.24,125.21,8.03966241]
[1744807910791,8.03603151,125.24,125.21,8.03966241]
[1744807911388,7.9865,125.22,125.21,0.05286241]
[1744807911584,0.05043151,125.24,125.21,0.05286241]
[1744807912094,8.03613151,125.24,125.21,0.05286241]
[1744807912692,8.03613151,125.24,125.21,8.03996241]
[1744807912894,0.05043151,125.24,125.21,0.05286241]
[1744807913088,0.05043151,125.24,125.23,7.9859]
[1744807913286,7.9824,125.29,125.21,25.09359549]
[1744807913486,21.23563308,125.33,125.22,2.0172]
[1744807913693,21.23563308,125.33,125.23,7.9856]
[1744807913992,7.9843,125.26,125.23,7.9856]
[1744807914193,17.06073308,125.3,125.22,10.0034]
[1744807914487,0.05532236,125.26,125.23,0.05059436]
[1744807915692,7.9846,125.25,125.23,0.05059436]
[1744807915888,0.05532236,125.26,125.23,8.03639436]
[1744807916289,8.03972236,125.26,125.23,8.03639436]
[1744807916490,0.05532236,125.26,125.23,0.05059436]
[1744807917397,0.05532236,125.26,125.25,7.9846]
[1744807917791,21.23563308,125.33,125.24,2.0454]
[1744807918096,7.9822,125.29,125.24,2.0454]
[1744807918496,7.9822,125.29,125.25,7.9843]
[1744807918691,7.9822,125.29,125.24,2.0454]
[1744807918891,0.05737057,125.28,125.26,0.05448491]
[1744807919094,4.1749,125.33,125.28,7.9823]
[1744807919398,10.66947854,125.35,125.28,7.9823]
[1744807919599,8.0413962,125.32,125.29,0.05902757]
[1744807919898,8.0413962,125.32,125.29,8.04112757]
[1744807921098,0.0608962,125.32,125.29,8.04112757]
[1744807921909,0.0608962,125.32,125.3,7.9814]
[1744807922407,0.0608962,125.32,125.29,0.05902757]
[1744807922604,4.1169,125.41,125.29,0.05902757]
[1744807922909,4.1169,125.41,125.28,17.06855482]
[1744807923510,7.9767,125.38,125.34,7.9784]
[1744807923710,7.9767,125.38,125.36,0.05566798]
[1744807924004,4.1169,125.41,125.28,17.06855482]
[1744807924213,0.05556288,125.38,125.36,8.03095635]
[1744807924410,0.05556288,125.38,125.36,7.9776]
[1744807924708,0.05556288,125.38,125.37,7.977]
[1744807926808,0.05556288,125.38,125.36,8.02908965]
[1744807927206,0.05556288,125.38,125.36,0.05178965]
[1744807928210,0.05556288,125.38,125.37,7.977]
[1744807928908,25.1041177,125.38,125.33,7.9791]
[1744807929115,17.1241177,125.38,125.33,7.9791]
[1744807929414,17.06855482,125.38,125.33,7.9791]
[1744807929608,21.35875482,125.38,125.32,7.98]
[1744807930009,21.35875482,125.38,125.26,2.0704]
[1744807930209,0.05191853,125.36,125.34,0.05158573]
[1744807930409,21.35875482,125.38,125.26,19.13895482]
[1744807930706,0.05874808,125.36,125.31,7.9805]
[1744807930910,21.35875482,125.38,125.31,7.9805]
[1744807931816,21.35875482,125.38,125.33,0.05879762]
[1744807931817,7.9789,125.35,125.33,0.05879762]
[1744807932020,0.05480131,125.36,125.33,0.05879762]
[1744807932415,7.9783,125.35,125.33,0.05879762]
[1744807933413,0.05480131,125.36,125.33,0.05879762]
[1744807934517,0.05480131,125.36,125.34,7.9785]
[1744807935315,8.03250131,125.36,125.33,8.03809762]
[1744807935616,0.05480131,125.36,125.33,8.03809762]
[1744807935917,7.9783,125.35,125.33,0.05879762]
[1744807936614,7.9783,125.35,125.33,8.03829762]
[1744807937517,8.03280131,125.36,125.33,8.03829762]
[1744807937814,8.03280131,125.36,125.34,7.9788]
[1744807938018,8.03280131,125.36,125.33,0.05879762]
[1744807938218,8.03280131,125.36,125.33,8.03789762]
[1744807938421,8.03280131,125.36,125.33,0.05879762]
[1744807938719,7.9784,125.35,125.33,8.03799762]
[1744807938917,0.05480131,125.36,125.33,0.05879762]
[1744807939221,7.9783,125.35,125.33,0.05879762]
[1744807940925,8.03280131,125.36,125.33,8.03819762]
[1744807941216,0.05480131,125.36,125.33,0.05879762]
[1744807941416,0.05480131,125.36,125.34,7.9786]
[1744807943311,8.03250131,125.36,125.34,7.9786]
[1744807943616,0.05480131,125.36,125.33,0.05879762]
[1744807943815,10.71811915,125.36,125.33,0.05879762]
[1744807944021,7.9789,125.34,125.33,0.05879762]
[1744807944221,18.64221784,125.34,125.33,0.05879762]
[1744807944823,7.9798,125.33,125.26,12.73371784]
[1744807945223,18.64251784,125.34,125.31,7.9806]
[1744807945418,10.66331784,125.34,125.31,7.9806]
[1744807945819,10.71735575,125.34,125.31,8.04120275]
[1744807946014,7.9796,125.33,125.31,8.04120275]
[1744807948723,10.71735575,125.34,125.31,0.06060275]
[1744807949121,0.05403791,125.34,125.31,0.06060275]
[1744807949622,10.66331784,125.4,125.31,0.06060275]
[1744807949829,10.66331784,125.42,125.37,7.9768]
[1744807950027,10.66331784,125.42,125.32,10.66331784]
[1744807950227,10.66331784,125.42,125.33,2.0603]
[1744807950526,7.976,125.39,125.33,2.0603]
[1744807950726,10.66331784,125.42,125.33,2.0603]
[1744807950928,0.05975583,125.37,125.35,0.05300142]
[1744807952130,0.05975583,125.37,125.36,7.9776]
[1744807958729,10.66331784,125.44,125.4,7.9748]
[1744807959032,7.9738,125.43,125.4,7.9748]
[1744807959231,10.66331784,125.44,125.4,7.9748]
[1744807959427,10.66331784,125.44,125.36,2.196]
[1744807959631,10.66331784,125.44,125.39,0.05614983]
[1744807959831,0.05242035,125.41,125.39,0.05614983]
[1744807960532,8.02712035,125.41,125.39,8.03174983]
[1744807960934,7.9751,125.4,125.39,0.05614983]
[1744807962431,8.02722035,125.41,125.39,0.05614983]
[1744807963633,8.02722035,125.41,125.39,8.03174983]
[1744807963938,0.05242035,125.41,125.39,8.03174983]
[1744807964138,0.05242035,125.41,125.4,7.9751]
[1744807971742,0.05242035,125.41,125.39,0.05614983]
[1744807972331,7.9751,125.4,125.39,0.05614983]
[1744807974137,8.02722035,125.41,125.39,0.05614983]
[1744807974440,8.02722035,125.41,125.39,8.03144983]
[1744807975944,0.05242035,125.41,125.39,8.03144983]
[1744807976444,0.05242035,125.41,125.4,7.9751]
[1744807980047,8.02682035,125.41,125.39,8.03154983]
[1744807981250,7.9751,125.4,125.39,0.05614983]
[1744807984149,0.05242035,125.41,125.39,0.05614983]
[1744807984349,8.02702035,125.41,125.39,0.05614983]
[1744807984544,8.02702035,125.41,125.39,8.03164983]
[1744807984847,0.05242035,125.41,125.39,0.05614983]
[1744807985248,0.05242035,125.41,125.39,8.03184983]
[1744807987455,8.02692035,125.41,125.39,8.03184983]
[1744807989752,0.05242035,125.41,125.4,7.9751]
[1744807989948,15.9378,125.5,125.39,0.05614983]
[1744807989949,10.66331784,125.48,125.39,0.05614983]
[1744807990153,10.66331784,125.48,125.39,4.2756]
[1744807991054,10.66331784,125.46,125.39,4.2756]
[1744807991256,0.05247833,125.45,125.42,0.05737699]
[1744807991559,7.9732,125.43,125.42,0.05737699]
[1744807995466,0.05247833,125.45,125.42,0.05737699]
[1744807996166,0.05247833,125.45,125.44,7.9725]
[1744808000567,10.64476273,125.5,125.45,7.9713]
[1744808000968,7.9701,125.48,125.45,7.9713]
[1744808001772,8.02945328,125.48,125.45,8.02953906]
[1744808002671,8.02945328,125.48,125.46,7.971]
[1744808005473,7.9706,125.47,125.45,8.02973906]
[1744808006773,0.05935328,125.48,125.45,0.05823906]
[1744808007975,0.05935328,125.48,125.45,2.16543906]
[1744808009074,0.05935328,125.48,125.47,7.9706]
[1744808011874,10.64476273,125.54,125.49,7.9688]
[1744808012074,7.9687,125.5,125.49,7.9688]
[1744808012275,7.9687,125.5,125.45,2.1072]
[1744808012578,7.9685,125.51,125.45,2.1072]
[1744808012878,10.64476273,125.54,125.45,2.1072]
[1744808013077,0.0569261,125.49,125.47,0.05294626]
[1744808013272,10.64476273,125.54,125.47,0.05294626]
[1744808013479,0.05762349,125.49,125.47,0.05294626]
[1744808013778,0.06057152,125.49,125.45,2.1072]
[1744808013979,0.06057152,125.49,125.47,0.05218686]
[1744808014374,0.06057152,125.49,125.48,7.97]
[1744808016474,7.9672,125.53,125.5,7.9682]
[1744808016876,10.64476273,125.54,125.46,14.87506273]
[1744808017077,7.9675,125.52,125.5,7.9682]
[1744808017374,10.64476273,125.54,125.5,7.9682]
[1744808017875,0.05571873,125.53,125.51,0.05819201]
[1744808018181,7.9674,125.52,125.51,0.05819201]
[1744808019181,14.77481629,125.52,125.51,0.05819201]
[1744808021686,7.9674,125.52,125.51,8.02629201]
[1744808021884,8.02291873,125.53,125.51,8.02629201]
[1744808026586,7.9674,125.52,125.51,0.05819201]
[1744808027089,7.9683,125.51,125.49,7.9691]
[1744808027281,6.80741629,125.52,125.47,6.80741629]
[1744808027482,6.80741629,125.51,125.46,11.03771629]
[1744808027783,7.969,125.5,125.48,7.9697]
[1744808028182,8.02850216,125.5,125.48,8.02111768]
[1744808028390,7.9693,125.49,125.48,0.05141768]
[1744808028687,0.05950216,125.5,125.48,0.05141768]
[1744808028989,7.9693,125.49,125.48,0.05141768]
[1744808032093,8.02860216,125.5,125.48,0.05141768]
[1744808032292,8.02860216,125.5,125.48,8.02141768]
[1744808037498,7.9693,125.49,125.48,0.05141768]
[1744808037995,6.86691845,125.5,125.48,0.05141768]
[1744808038195,8.02850216,125.5,125.48,8.02131768]
[1744808039997,0.05950216,125.5,125.49,7.9693]
[1744808040903,2.1799,125.56,125.49,6.80741629]
[1744808041201,6.80741629,125.56,125.46,4.2303]
[1744808041406,7.9678,125.52,125.5,7.9687]
[1744808041606,14.77521629,125.52,125.47,6.80741629]
[1744808042199,0.06029034,125.51,125.48,0.05404791]
[1744808042803,0.06029034,125.51,125.49,7.9693]
[1744808043907,7.9693,125.49,125.48,0.05404791]
[1744808044699,7.9716,125.46,125.41,8.95751629]
[1744808044899,7.9716,125.46,125.43,7.9728]
[1744808045302,14.77831629,125.47,125.41,8.95751629]
[1744808045500,14.77831629,125.47,125.44,7.9723]
[1744808045806,14.83749938,125.47,125.44,8.02844337]
[1744808046605,7.9713,125.46,125.44,8.02844337]
[1744808046806,7.9713,125.46,125.44,0.05614337]
[1744808047907,7.9713,125.46,125.44,8.02854337]
[1744808048109,8.03008309,125.47,125.44,8.02854337]
[1744808048904,0.05918309,125.47,125.45,7.9715]
[1744808049604,0.05918309,125.47,125.44,0.05614337]
[1744808049908,6.86659938,125.47,125.44,0.05614337]
[1744808050610,6.80741629,125.46,125.44,0.05614337]
[1744808050808,0.05918309,125.47,125.44,0.05614337]
[1744808050809,6.86659938,125.47,125.44,0.05614337]
[1744808051509,7.9719,125.45,125.44,0.05614337]
[1744808051809,6.86659938,125.47,125.44,0.05614337]
[1744808052110,7.9715,125.46,125.44,0.05614337]
[1744808053808,0.05918309,125.47,125.44,0.05614337]
[1744808054213,0.05918309,125.47,125.45,7.9719]
[1744808055313,0.05918309,125.47,125.46,7.9713]
[1744808056212,0.05918309,125.47,125.45,7.9715]
[1744808057621,0.05918309,125.47,125.44,0.05614337]
[1744808058211,0.05918309,125.47,125.45,7.9713]
[1744808058816,6.86659938,125.47,125.44,8.02834337]
[1744808059023,6.80741629,125.45,125.44,0.05614337]
[1744808059418,14.77871629,125.46,125.44,0.05614337]
[1744808059621,6.80741629,125.46,125.44,0.05614337]
[1744808060224,14.77901629,125.46,125.44,0.05614337]
[1744808060421,7.9716,125.46,125.44,0.05614337]
[1744808062021,0.05918309,125.47,125.44,0.05614337]
[1744808062226,6.80741629,125.52,125.46,6.80741629]
[1744808062416,6.80741629,125.52,125.47,6.80741629]
[1744808062727,7.9686,125.51,125.48,7.9697]
[1744808062931,6.80741629,125.51,125.47,6.80741629]